bitfinex/quotes_SOLUSD_20240729
["timestamp","ask_amount","ask_price","bid_price","bid_amount"]
[1722221364177,69.42,192.02,191.84,16.0769]
[1722221364403,15.7,191.99,191.84,16.0769]
[1722221365100,15.7,191.96,191.84,16.0769]
[1722221365311,0.17,191.95,191.84,16.0769]
[1722221365682,12.87,191.96,191.84,16.0769]
[1722221366900,17.0375,191.96,191.84,16.0769]
[1722221367092,4.1677,191.95,191.84,16.0769]
[1722221367294,4.1679,191.94,191.84,16.0769]
[1722221367697,4.1681,191.93,191.84,16.0769]
[1722221367894,10.04,191.91,191.84,16.0769]
[1722221368106,0.34,191.9,191.84,16.0769]
[1722221368481,10.04,191.91,191.84,16.0769]
[1722221368886,40.0,191.96,191.84,16.0769]
[1722221368887,10.38,191.9,191.84,16.0769]
[1722221369309,15.7,191.94,191.84,16.0769]
[1722221370599,19.8679,191.94,191.84,16.0769]
[1722221371999,15.7,191.94,191.84,16.0769]
[1722221372196,0.34,191.95,191.84,16.0769]
[1722221372395,61.04,191.96,191.84,16.0769]
[1722221373101,2.10145841,192.01,191.84,16.0769]
[1722221373412,10.4138,192.06,191.85,32.4192]
[1722221373413,15.7,192.02,191.85,32.4192]
[1722221373599,15.7,192.02,191.86,15.7612]
[1722221374114,15.7,192.02,191.89,15.7612]
[1722221374709,4.1664,192.01,191.89,15.7612]
[1722221375096,19.8662,192.02,191.89,15.7612]
[1722221375311,15.7,192.02,191.89,15.7612]
[1722221375897,26.13,192.08,191.91,26.13]
[1722221376190,26.13,192.08,191.92,15.7612]
[1722221376416,26.13,192.08,191.93,6.5859]
[1722221376597,30.2949,192.08,191.93,6.5859]
[1722221376795,15.7,192.07,191.93,6.5859]
[1722221377012,19.8651,192.07,191.93,6.5859]
[1722221377200,20.0,192.07,191.93,6.5859]
[1722221377397,2.10161829,192.12,191.93,6.5859]
[1722221377398,20.0,192.09,191.93,6.5859]
[1722221377591,20.0,192.07,191.93,6.5859]
[1722221377891,15.7,192.03,191.93,6.5859]
[1722221378098,0.17,192.02,191.93,6.5859]
[1722221378311,0.34,192.02,191.93,6.5859]
[1722221378614,0.17,192.02,191.93,6.5859]
[1722221378820,45.0,192.06,191.93,6.5859]
[1722221378998,16.04,192.05,191.93,6.5859]
[1722221379307,15.7,192.03,191.93,6.5859]
[1722221379508,0.34,192.02,191.93,6.5859]
[1722221379704,65.2062,192.02,191.93,6.5859]
[1722221379903,15.7,192.0,191.93,6.5859]
[1722221381001,19.8664,192.01,191.93,6.5859]
[1722221381192,61.04,192.0,191.93,6.5859]
[1722221381697,0.34,192.0,191.93,6.5859]
[1722221381907,0.34,192.01,191.93,6.5859]
[1722221382095,45.34,192.01,191.93,6.5859]
[1722221382299,2.10161829,192.12,191.94,16.5328]
[1722221382622,4.164,192.12,191.94,16.5328]
[1722221382916,15.7,192.11,191.96,15.5373]
[1722221383093,19.8642,192.11,191.96,15.5373]
[1722221383294,15.7,192.1,191.96,15.5373]
[1722221384504,15.7,192.09,191.96,15.5373]
[1722221384916,15.7,192.06,191.96,15.5373]
[1722221385327,15.7,192.04,191.96,15.5373]
[1722221385528,0.17,192.03,191.96,15.5373]
[1722221385907,15.7,192.08,191.96,15.5373]
[1722221386212,4.1631,192.17,191.98,21.9861]
[1722221386418,49.38,192.21,191.98,21.9861]
[1722221386619,49.38,192.21,191.95,0.34]
[1722221386620,0.7738022,192.26,192.03,22.8711]
[1722221386819,30.1538022,192.26,192.06,16.2825]
[1722221387008,15.7,192.25,192.07,6.5886]
[1722221387208,15.7,192.25,192.08,16.2825]
[1722221387446,15.7,192.23,192.08,16.2825]
[1722221387930,15.7,192.21,192.08,16.2825]
[1722221389104,15.7,192.19,192.08,16.2825]
[1722221389309,0.34,192.18,192.08,16.2825]
[1722221389720,0.7738022,192.26,192.09,6.6131]
[1722221389943,4.9348022,192.26,192.09,6.6131]
[1722221390405,4.1612,192.25,192.09,6.6131]
[1722221390734,15.7,192.25,192.09,6.6131]
[1722221390924,0.34,192.24,192.09,7.65413729]
[1722221391233,0.34,192.24,192.11,15.628]
[1722221391440,4.9348022,192.26,192.11,15.628]
[1722221391618,16.4738022,192.26,192.11,15.628]
[1722221392213,16.4738022,192.26,192.12,6.0793]
[1722221392813,20.6348022,192.26,192.12,6.0793]
[1722221393035,0.7738022,192.26,192.15,15.628]
[1722221393820,16.4738022,192.26,192.15,15.628]
[1722221394333,0.34,192.25,192.15,15.628]
[1722221394722,61.04,192.25,192.15,15.628]
[1722221394923,0.7738022,192.26,192.15,15.628]
[1722221397546,16.4738022,192.26,192.15,15.628]
[1722221398543,0.7738022,192.26,192.15,15.628]
[1722221398722,61.4738022,192.26,192.15,15.628]
[1722221399119,0.7738022,192.26,192.15,15.628]
[1722221401548,15.7,192.25,192.15,15.628]
[1722221402432,0.3996,192.28,192.16,6.6409]
[1722221402645,0.3996,192.28,192.17,16.6556]
[1722221403448,15.7,192.27,192.17,16.6556]
[1722221403746,15.7,192.25,192.17,16.6556]
[1722221403944,19.8613,192.25,192.17,16.6556]
[1722221404339,16.0996,192.28,192.17,16.6556]
[1722221404543,0.3996,192.28,192.17,16.6556]
[1722221405226,16.0996,192.28,192.17,16.6556]
[1722221405839,20.2602,192.28,192.17,16.6556]
[1722221406649,16.0996,192.28,192.17,16.6556]
[1722221407628,15.7,192.25,192.17,16.6556]
[1722221407928,15.7,192.23,192.17,16.6556]
[1722221408131,15.7,192.25,192.17,16.6556]
[1722221408852,4.5602,192.28,192.17,16.6556]
[1722221408853,0.3996,192.28,192.17,16.6556]
[1722221409440,15.7,192.27,192.17,16.6556]
[1722221410032,15.7,192.25,192.17,16.6556]
[1722221411337,15.7,192.24,192.17,16.6556]
[1722221411527,15.7,192.23,192.17,16.6556]
[1722221412545,16.04,192.26,192.17,16.6556]
[1722221412748,15.7,192.2,192.17,16.6556]
[1722221412957,4.1638,192.13,192.12,15.8591]
[1722221413133,15.7,192.15,192.12,15.8591]
[1722221413332,4.164,192.12,192.11,2.13382858]
[1722221413539,19.864,192.12,191.96,15.8591]
[1722221413751,15.7,192.11,191.95,29.38]
[1722221414465,15.7,192.11,191.9,29.38]
[1722221414466,15.7,192.09,191.9,29.38]
[1722221414840,0.34,192.1,191.9,29.38]
[1722221414841,15.7,192.07,191.9,29.38]
[1722221415973,15.7,192.08,191.9,29.38]
[1722221416462,15.7,192.04,191.92,6.5231]
[1722221417039,19.8662,192.02,191.92,6.5231]
[1722221417239,15.7,192.01,191.92,6.5231]
[1722221417739,15.7,192.03,191.92,6.5231]
[1722221417943,0.34,192.05,191.92,6.5231]
[1722221418148,0.34,192.06,191.92,6.5231]
[1722221418450,4.1651,192.07,191.92,6.5231]
[1722221418641,29.38,192.11,191.92,6.5231]
[1722221418642,4.1654,192.06,191.92,6.5231]
[1722221418843,15.87,192.05,191.92,6.5231]
[1722221419166,15.7,192.05,191.92,6.5231]
[1722221419365,15.7,192.03,191.92,6.5231]
[1722221419671,0.17,192.07,191.93,1.0420406]
[1722221419843,19.8654,192.06,191.92,6.5231]
[1722221420045,15.7,192.03,191.92,6.5231]
[1722221420760,4.1662,192.02,191.92,6.5231]
[1722221421342,19.866,192.03,191.92,6.5231]
[1722221421557,0.17,192.07,191.93,1.04201762]
[1722221421758,4.165,192.08,191.92,6.5231]
[1722221421968,20.0,192.12,191.92,6.5231]
[1722221422145,4.1651,192.08,191.92,6.5231]
[1722221422343,4.1654,192.06,191.92,6.5231]
[1722221422542,19.864,192.13,191.94,6.5158]
[1722221422743,49.38,192.19,191.97,6.5158]
[1722221422957,4.1635,192.15,191.99,6.5158]
[1722221423363,4.1634,192.16,192.01,6.5158]
[1722221423542,15.7,192.2,192.01,6.5158]
[1722221423753,15.7,192.16,192.01,6.5158]
[1722221423954,30.4057,192.21,192.01,6.5158]
[1722221423955,19.8637,192.14,192.01,6.5158]
[1722221425479,15.7,192.12,192.01,6.5158]
[1722221425770,0.34,192.13,192.01,6.5158]
[1722221425969,0.17,192.13,192.01,6.5158]
[1722221426146,15.7,192.14,192.02,15.4049]
[1722221426348,19.8632,192.16,192.02,15.4049]
[1722221426544,0.34,192.15,192.02,15.4049]
[1722221426767,15.7,192.14,192.02,15.4049]
[1722221427069,0.17,192.13,192.02,15.4049]
[1722221427371,19.8641,192.12,192.02,15.4049]
[1722221427747,4.5044,192.11,192.02,15.4049]
[1722221427971,0.34,192.11,192.02,15.4049]
[1722221428479,16.04,192.11,192.02,15.4049]
[1722221428686,15.7,192.09,192.02,15.4049]
[1722221428866,19.8647,192.09,192.02,15.4049]
[1722221429249,0.34,192.11,192.02,15.4049]
[1722221429250,19.865,192.08,192.02,15.4049]
[1722221429557,15.87,192.07,192.02,15.4049]
[1722221430254,20.0352,192.07,192.02,15.4049]
[1722221430555,0.17,192.07,192.02,15.4049]
[1722221431070,15.7,192.09,192.02,15.4049]
[1722221431666,29.38,192.15,192.02,15.4049]
[1722221431848,15.7,192.14,192.02,15.4049]
[1722221432465,58.78054202,192.19,192.02,15.4049]
[1722221432466,33.5425,192.19,192.02,15.4049]
[1722221432771,20.0,192.22,192.03,6.1106]
[1722221432772,4.1625,192.2,192.03,6.1106]
[1722221432985,15.7,192.19,192.05,21.338]
[1722221433482,19.8625,192.19,192.05,21.338]
[1722221434055,4.1627,192.18,192.05,21.338]
[1722221434263,15.7,192.19,192.05,21.338]
[1722221434264,15.7,192.17,192.05,21.338]
[1722221434949,19.8627,192.18,192.05,21.338]
[1722221435173,15.7,192.18,192.05,21.338]
[1722221435674,19.8628,192.18,192.05,21.338]
[1722221436585,16.04,192.19,192.05,21.338]
[1722221436765,20.2028,192.18,192.05,21.338]
[1722221437069,19.8632,192.16,192.05,21.338]
[1722221437277,4.5035,192.15,192.05,21.338]
[1722221437479,0.34,192.18,192.05,21.338]
[1722221437684,19.8631,192.17,192.05,21.338]
[1722221437893,0.34,192.16,192.05,21.338]
[1722221438179,49.5034,192.16,192.05,21.338]
[1722221438381,15.7,192.14,192.05,21.338]
[1722221438552,0.17,192.13,192.05,21.338]
[1722221439170,19.8641,192.12,192.05,21.338]
[1722221439375,15.7,192.12,192.05,21.338]
[1722221441259,19.8641,192.12,192.05,21.338]
[1722221441952,4.5043,192.11,192.05,21.338]
[1722221442567,4.1647,192.09,192.05,21.338]
[1722221442776,19.8647,192.09,192.05,21.338]
[1722221443373,4.1641,192.12,192.05,21.338]
[1722221443563,15.7,192.13,192.05,21.338]
[1722221443874,4.1631,192.17,192.05,21.338]
[1722221444463,15.7,192.16,192.05,21.338]
[1722221444657,15.7,192.15,192.05,21.338]
[1722221444859,4.1634,192.15,192.05,21.338]
[1722221445377,20.0,192.18,192.05,21.338]
[1722221445378,4.1636,192.14,192.05,21.338]
[1722221445579,15.7,192.15,192.05,21.338]
[1722221445782,4.1633,192.16,192.05,21.338]
[1722221446167,45.34,192.15,192.05,21.338]
[1722221446575,65.2034,192.15,192.05,21.338]
[1722221447582,4.1637,192.14,192.05,21.338]
[1722221448169,65.2034,192.15,192.05,21.338]
[1722221448880,4.1636,192.14,192.05,21.338]
[1722221449093,15.7,192.14,192.05,21.338]
[1722221449266,61.04,192.13,192.05,21.338]
[1722221449470,15.7,192.11,192.05,21.338]
[1722221449665,19.8642,192.11,192.05,21.338]
[1722221449873,45.34,192.13,192.05,21.338]
[1722221449874,4.164,192.12,192.05,21.338]
[1722221450067,61.04,192.11,192.05,21.338]
[1722221450589,65.2043,192.11,192.05,21.338]
[1722221451386,61.04,192.11,192.05,21.338]
[1722221452386,15.7,192.14,192.05,21.338]
[1722221452694,20.0,192.19,192.05,21.338]
[1722221453067,4.1629,192.18,192.05,21.338]
[1722221453280,19.8629,192.17,192.05,21.338]
[1722221453799,15.7,192.17,192.05,21.338]
[1722221454691,19.8629,192.17,192.05,21.338]
[1722221454865,0.34,192.16,192.05,21.338]
[1722221455067,15.7,192.15,192.05,21.338]
[1722221455284,20.0,192.19,192.05,21.338]
[1722221455285,15.7,192.19,192.05,21.338]
[1722221455491,35.7,192.18,192.05,21.338]
[1722221456272,15.7,192.16,192.05,21.338]
[1722221457397,0.34,192.15,192.05,21.338]
[1722221457776,20.0,192.18,192.05,21.338]
[1722221457983,51.4779072,192.2,192.05,21.338]
[1722221457984,31.4779072,192.2,192.05,21.338]
[1722221458302,35.6402072,192.2,192.05,21.338]
[1722221458489,15.7,192.19,192.05,21.338]
[1722221459292,0.17,192.18,192.05,21.338]
[1722221459603,0.34,192.18,192.05,21.338]
[1722221459801,16.04,192.18,192.05,21.338]
[1722221460908,15.7,192.22,192.07,6.0327]
[1722221461088,15.7,192.22,192.08,15.5026]
[1722221461692,2.14858185,192.23,192.08,15.5026]
[1722221462005,41.77,192.24,192.09,6.0327]
[1722221462307,15.7,192.24,192.11,6.0327]
[1722221462610,28.20307363,192.27,192.12,15.4211]
[1722221462813,32.36387363,192.27,192.12,15.4211]
[1722221463105,15.7,192.26,192.13,6.1095]
[1722221463296,0.3996,192.28,192.14,16.46189748]
[1722221463614,0.3996,192.28,192.16,15.4211]
[1722221463996,16.0996,192.28,192.16,15.4211]
[1722221464197,0.3996,192.28,192.16,15.4211]
[1722221464714,16.0996,192.28,192.16,15.4211]
[1722221465714,20.2603,192.28,192.16,15.4211]
[1722221465910,16.0996,192.28,192.16,15.4211]
[1722221467014,0.3996,192.28,192.16,15.4211]
[1722221467488,0.3996,192.28,192.17,6.3975]
[1722221467694,0.3996,192.28,192.18,16.1031]
[1722221469096,0.17,192.27,192.18,16.1031]
[1722221469296,0.34,192.27,192.18,16.1031]
[1722221469620,16.04,192.27,192.18,16.1031]
[1722221471391,20.2008,192.27,192.18,16.1031]
[1722221471702,16.04,192.27,192.18,16.1031]
[1722221472210,0.34,192.27,192.18,16.1031]
[1722221472729,15.7,192.23,192.18,16.1031]
[1722221473722,16.04,192.24,192.18,16.1031]
[1722221473897,15.7,192.22,192.18,16.1031]
[1722221474097,16.04,192.21,192.18,16.1031]
[1722221474305,15.7,192.23,192.18,16.1031]
[1722221474503,0.34,192.22,192.18,16.1031]
[1722221474900,15.7,192.23,192.18,16.1031]
[1722221475223,16.04,192.24,192.18,16.1031]
[1722221475427,15.7,192.24,192.18,16.1031]
[1722221476431,15.7,192.26,192.18,16.1031]
[1722221476600,16.0996,192.28,192.18,16.1031]
[1722221477097,0.3996,192.28,192.18,16.1031]
[1722221479917,20.2602,192.28,192.18,16.1031]
[1722221480426,16.0996,192.28,192.18,16.1031]
[1722221480821,0.3996,192.28,192.18,16.1031]
[1722221483915,15.7,192.27,192.18,16.1031]
[1722221484100,15.7,192.25,192.18,16.1031]
[1722221484300,0.7396,192.28,192.18,16.1031]
[1722221484301,0.3996,192.28,192.18,16.1031]
[1722221485111,4.5602,192.28,192.18,16.1031]
[1722221485306,16.0996,192.28,192.18,16.1031]
[1722221486042,15.7,192.26,192.18,16.1031]
[1722221487225,20.2602,192.28,192.18,16.1031]
[1722221487431,0.3996,192.28,192.18,16.1031]
[1722221488311,15.7,192.27,192.18,16.1031]
[1722221488511,0.3996,192.28,192.18,16.1031]
[1722221488915,15.7,192.27,192.18,16.1031]
[1722221489634,0.3996,192.28,192.18,16.1031]
[1722221490423,16.04,192.27,192.18,16.1031]
[1722221490624,15.7,192.27,192.18,16.1031]
[1722221491135,19.8608,192.27,192.18,16.1031]
[1722221491316,15.7,192.27,192.18,16.1031]
[1722221491809,0.3996,192.28,192.18,16.1031]
[1722221492933,4.5602,192.28,192.18,16.1031]
[1722221493305,19.8608,192.27,192.18,16.1031]
[1722221493525,15.7,192.26,192.18,16.1031]
[1722221494125,19.861,192.26,192.18,16.1031]
[1722221494312,19.8612,192.25,192.18,16.1031]
[1722221494518,15.7,192.23,192.18,16.1031]
[1722221494921,19.8617,192.23,192.18,16.1031]
[1722221495128,19.8618,192.22,192.18,16.1031]
[1722221495446,19.862,192.22,192.18,16.1031]
[1722221496610,15.7,192.23,192.18,16.1031]
[1722221497015,15.7,192.27,192.18,16.1031]
[1722221499012,0.3996,192.28,192.18,16.1031]
[1722221501016,15.7,192.27,192.18,16.1031]
[1722221501522,0.3996,192.28,192.18,16.1031]
[1722221501723,4.5602,192.28,192.18,16.1031]
[1722221502038,0.3996,192.28,192.18,16.1031]
[1722221507729,16.04,192.27,192.18,16.1031]
[1722221508532,0.3996,192.28,192.19,6.4364]
[1722221508735,0.3996,192.28,192.2,15.8668]
[1722221509047,0.3996,192.28,192.21,6.4364]
[1722221509542,0.3996,192.28,192.22,15.8668]
[1722221510726,17.7763422,192.37,192.23,22.191]
[1722221510933,15.7,192.37,192.23,22.191]
[1722221511148,15.7,192.37,192.24,22.191]
[1722221511552,15.65,192.39,192.24,22.191]
[1722221511753,19.8082,192.39,192.24,22.191]
[1722221512257,26.05,192.4,192.25,15.7135]
[1722221512558,15.65,192.39,192.25,15.7135]
[1722221512928,19.8082,192.39,192.25,15.7135]
[1722221513127,4.1582,192.39,192.26,6.4775]
[1722221513534,26.05,192.4,192.26,6.4775]
[1722221513827,30.2082,192.4,192.26,6.4775]
[1722221514143,26.05,192.4,192.26,6.4775]
[1722221514344,15.35047126,192.44,192.29,22.191]
[1722221514547,15.35047126,192.44,192.3,22.191]
[1722221514548,17.70684978,192.44,192.3,22.191]
[1722221514734,15.65,192.42,192.3,22.191]
[1722221515076,4.1575,192.42,192.3,22.191]
[1722221515254,25.7738022,192.45,192.3,22.191]
[1722221515431,4.1577,192.42,192.3,22.191]
[1722221515636,4.1572,192.44,192.3,22.191]
[1722221516275,2.4406022,192.45,192.36,26.05]
[1722221516431,30.7458399,192.58,192.4,6.1648]
[1722221516635,15.65,192.52,192.4,6.1648]
[1722221516955,19.8055,192.52,192.4,7.20411456]
[1722221517143,30.7458399,192.58,192.4,6.1648]
[1722221517144,4.6958399,192.5,192.4,6.1648]
[1722221517852,4.1567,192.46,192.4,6.1648]
[1722221518033,20.3458399,192.5,192.4,6.1648]
[1722221518243,4.6958399,192.5,192.4,6.1648]
[1722221518632,19.8061,192.49,192.4,6.1648]
[1722221519146,26.05,192.49,192.34,6.5837]
[1722221519349,4.1573,192.43,192.34,6.5837]
[1722221519661,4.1571,192.45,192.34,6.5837]
[1722221520243,15.65,192.47,192.34,6.5837]
[1722221520437,15.65,192.44,192.34,6.5837]
[1722221520649,4.1584,192.38,192.34,6.5837]
[1722221520870,26.22,192.43,192.29,6.3181]
[1722221520871,4.1594,192.34,192.29,6.3181]
[1722221521166,4.1596,192.33,192.29,6.3181]
[1722221521533,15.65,192.35,192.29,6.3181]
[1722221521733,65.7879,192.42,192.29,6.3181]
[1722221521734,15.65,192.39,192.29,6.3181]
[1722221521938,4.1579,192.41,192.29,6.3181]
[1722221522166,26.05,192.42,192.29,6.3181]
[1722221522457,0.34,192.43,192.29,6.3181]
[1722221522664,15.99,192.43,192.29,6.3181]
[1722221522859,4.158,192.4,192.29,6.3181]
[1722221523037,15.65,192.39,192.29,6.3181]
[1722221524239,19.8084,192.38,192.29,6.3181]
[1722221524444,4.158,192.4,192.29,6.3181]
[1722221524748,20.0,192.43,192.29,6.3181]
[1722221524945,45.34,192.42,192.29,6.3181]
[1722221525148,4.1586,192.37,192.29,6.3181]
[1722221525539,15.65,192.37,192.29,6.3181]
[1722221525739,19.8087,192.37,192.29,6.3181]
[1722221525945,15.65,192.37,192.29,6.3181]
[1722221526472,15.65,192.4,192.29,6.3181]
[1722221527162,15.65,192.46,192.29,6.3181]
[1722221527370,4.156,192.5,192.33,26.05]
[1722221527549,26.05,192.52,192.34,16.3243]
[1722221527879,4.1559,192.5,192.35,7.19926847]
[1722221528365,15.65,192.48,192.35,6.1598]
[1722221529463,15.65,192.49,192.35,6.1598]
[1722221529867,19.8061,192.49,192.35,6.1598]
[1722221530168,15.65,192.47,192.35,6.1598]
[1722221530870,0.34,192.48,192.35,6.1598]
[1722221531167,15.65,192.41,192.35,6.1598]
[1722221531564,26.05,192.46,192.35,6.1598]
[1722221531867,15.65,192.44,192.35,6.1598]
[1722221532281,15.82,192.45,192.35,6.1598]
[1722221532455,15.65,192.45,192.35,6.1598]
[1722221533171,26.05,192.43,192.35,6.1598]
[1722221533380,15.65,192.45,192.35,6.1598]
[1722221533381,15.65,192.39,192.35,6.1598]
[1722221533953,15.65,192.39,192.24,22.7528]
[1722221534557,15.65,192.43,192.25,6.3211]
[1722221534775,15.65,192.43,192.26,1.03980726]
[1722221534964,15.65,192.43,192.27,1.03976709]
[1722221535163,26.05,192.44,192.28,22.575]
[1722221535573,15.65,192.4,192.28,22.575]
[1722221535774,4.1583,192.39,192.28,22.575]
[1722221536365,15.65,192.4,192.28,22.575]
[1722221536366,19.808,192.4,192.28,22.575]
[1722221536870,15.65,192.4,192.28,22.575]
[1722221537652,15.65,192.38,192.28,22.575]
[1722221537854,19.8085,192.38,192.28,22.575]
[1722221538670,15.65,192.38,192.28,22.575]
[1722221538858,15.65,192.4,192.28,22.575]
[1722221539183,19.809,192.35,192.28,22.575]
[1722221539683,19.8097,192.32,192.25,6.1513]
[1722221539987,4.16,192.31,192.25,6.1513]
[1722221540177,15.65,192.32,192.25,6.1513]
[1722221540777,15.65,192.31,192.25,6.1513]
[1722221541461,15.65,192.3,192.25,6.1513]
[1722221541795,19.8101,192.3,192.25,6.1513]
[1722221542278,19.8101,192.3,192.23,15.185]
[1722221542479,19.8104,192.29,192.23,15.185]
[1722221543072,15.65,192.28,192.23,15.185]
[1722221543261,4.1615,192.24,192.21,6.268]
[1722221543462,15.65,192.26,192.21,6.268]
[1722221543766,19.811,192.26,192.21,6.268]
[1722221543968,15.65,192.26,192.21,6.268]
[1722221545101,15.65,192.28,192.18,16.1185]
[1722221545289,26.39,192.29,192.18,16.1185]
[1722221545290,15.65,192.26,192.18,16.1185]
[1722221546165,19.8112,192.25,192.18,16.1185]
[1722221546878,15.65,192.25,192.18,16.1185]
[1722221548163,19.811,192.26,192.18,16.1185]
[1722221548378,15.65,192.26,192.18,16.1185]
[1722221548586,19.811,192.26,192.18,16.1185]
[1722221549683,19.8112,192.25,192.18,16.1185]
[1722221549867,15.65,192.25,192.18,16.1185]
[1722221550682,15.65,192.26,192.18,16.1185]
[1722221551192,19.8113,192.25,192.18,16.1185]
[1722221551696,19.8117,192.23,192.18,16.1185]
[1722221551898,15.99,192.22,192.14,16.2644]
[1722221552100,15.65,192.22,192.14,16.2644]
[1722221552288,19.8125,192.2,192.14,16.2644]
[1722221552621,41.7,192.2,192.1,6.1386]
[1722221552791,4.1634,192.15,192.1,6.1386]
[1722221552999,15.65,192.16,192.1,6.1386]
[1722221553180,4.1634,192.15,192.1,6.1386]
[1722221553498,15.65,192.16,192.1,6.1386]
[1722221553993,45.0,192.15,192.1,6.1386]
[1722221554381,45.0,192.15,192.07,16.2644]
[1722221555087,49.1634,192.15,192.07,16.2644]
[1722221555291,15.99,192.14,192.07,16.2644]
[1722221555792,19.8141,192.12,192.05,6.6032]
[1722221555992,45.34,192.11,192.05,6.6032]
[1722221556198,65.1542,192.11,192.03,15.6738]
[1722221556580,15.99,192.11,192.03,15.6738]
[1722221556782,15.65,192.14,192.03,15.6738]
[1722221557085,4.1631,192.17,192.03,15.6738]
[1722221557408,26.05,192.2,192.03,15.6738]
[1722221557409,0.34,192.16,192.03,15.6738]
[1722221557578,4.1638,192.13,192.03,15.6738]
[1722221557770,4.1636,192.14,192.03,15.6738]
[1722221557993,19.8136,192.14,192.03,15.6738]
[1722221558193,0.17,192.15,192.03,15.6738]
[1722221558194,15.65,192.12,192.03,15.6738]
[1722221558387,4.5043,192.11,192.03,15.6738]
[1722221559486,20.1543,192.11,192.03,15.6738]
[1722221559808,4.1645,192.1,192.03,15.6738]
[1722221560132,15.99,192.11,192.03,15.6738]
[1722221560487,4.1631,192.17,192.03,15.6738]
[1722221560684,15.65,192.16,192.03,15.6738]
[1722221561382,4.1636,192.14,192.03,15.6738]
[1722221561783,64.8139,192.13,192.03,15.6738]
[1722221562482,19.8143,192.11,192.03,15.6738]
[1722221562785,45.34,192.1,192.03,15.6738]
[1722221563195,49.5046,192.1,192.03,15.6738]
[1722221563415,45.34,192.1,192.03,15.6738]
[1722221564210,65.1544,192.1,192.03,15.6738]
[1722221564586,60.99,192.1,192.03,15.6738]
[1722221564791,65.1546,192.1,192.03,15.6738]
[1722221565092,4.1651,192.07,192.01,6.3493]
[1722221565298,15.65,192.08,192.01,6.3493]
[1722221565299,60.65,192.06,192.01,6.3493]
[1722221565497,15.65,192.06,192.01,6.3493]
[1722221566809,0.34,192.08,192.01,6.3493]
[1722221567019,0.34,192.07,192.01,6.3493]
[1722221567904,20.1551,192.07,192.01,6.3493]
[1722221568396,60.65,192.06,192.01,6.3493]
[1722221569295,60.65,192.06,191.99,16.2365]
[1722221569494,56.461,192.11,191.97,0.7738022]
[1722221569495,15.65,192.11,192.01,6.0956]
[1722221569815,26.05,192.23,192.04,26.05]
[1722221569996,26.05,192.23,192.05,1.04102576]
[1722221570322,20.0,192.22,192.04,26.05]
[1722221570536,4.1628,192.18,192.09,4.1646]
[1722221570692,15.65,192.22,192.05,1.04122052]
[1722221570893,15.65,192.18,192.1,4.1644]
[1722221571919,15.65,192.22,192.11,4.1641]